bitfinex-derivatives/quotes_SOLF0:USTF0_20250505
["timestamp","ask_amount","ask_price","bid_price","bid_amount"]
[1746414249522,6.896,145.01,144.96,24.24]
[1746414250714,6.896,145.01,144.97,6.8975]
[1746414251619,6.8962,145.0,144.96,31.1379]
[1746414252120,24.24,145.03,144.96,24.24]
[1746414252317,4.1276,145.02,144.93,24.26]
[1746414252715,6.897,144.99,144.94,6.8987]
[1746414253721,6.8972,144.98,144.94,6.8987]
[1746414253925,4.1276,145.02,144.93,31.1593]
[1746414254125,6.1057,145.02,144.93,31.1593]
[1746414255229,6.8979,144.97,144.93,31.1593]
[1746414255721,6.8981,144.96,144.93,24.26]
[1746414256222,24.26,144.99,144.93,24.26]
[1746414257227,6.8986,144.95,144.93,24.26]
[1746414258229,6.8986,144.95,144.91,6.9003]
[1746414260332,6.8991,144.94,144.9,36.39679593]
[1746414260933,6.9002,144.92,144.9,24.26]
[1746414261125,5.23599593,144.97,144.88,6.9015]
[1746414261433,6.9005,144.91,144.88,6.9015]
[1746414261631,24.26,144.95,144.88,6.9015]
[1746414261926,6.9,144.92,144.87,31.1621]
[1746414262232,6.9,144.92,144.87,24.26]
[1746414263134,6.8997,144.93,144.88,6.9015]
[1746414263328,6.8997,144.93,144.87,24.26]
[1746414264232,6.8997,144.93,144.89,6.9012]
[1746414266435,6.9001,144.92,144.89,6.9012]
[1746414266633,24.26,144.95,144.88,6.9017]
[1746414267236,6.8998,144.93,144.89,6.9014]
[1746414268940,6.9,144.92,144.89,6.9014]
[1746414271340,6.8997,144.93,144.89,6.9014]
[1746414272343,24.26,144.95,144.87,24.26]
[1746414272838,31.159,144.95,144.91,6.9004]
[1746414273036,31.159,144.95,144.89,5.23599593]
[1746414273037,24.26,144.95,144.89,5.23599593]
[1746414273445,31.1586,144.95,144.91,6.9001]
[1746414273644,31.1586,144.95,144.89,5.23599593]
[1746414275244,6.8986,144.95,144.92,6.8999]
[1746414277549,8.9773,144.96,144.93,6.8995]
[1746414280048,8.9773,144.96,144.92,6.8998]
[1746414280552,8.9773,144.96,144.93,6.8993]
[1746414280948,8.9773,144.96,144.89,5.23599593]
[1746414281350,8.9773,144.96,144.92,6.8998]
[1746414281552,6.8986,144.95,144.92,6.8998]
[1746414283448,8.9775,144.96,144.92,6.8998]
[1746414283648,2.0792,144.96,144.92,6.8998]
[1746414284449,8.9774,144.96,144.92,6.8998]
[1746414284951,8.9774,144.96,144.93,6.8995]
[1746414285252,31.1573,144.98,144.91,24.26]
[1746414285445,31.1573,144.98,144.94,6.8987]
[1746414286155,6.8977,144.97,144.94,6.8987]
[1746414286350,24.26,144.98,144.94,6.8987]
[1746414287254,31.1575,144.98,144.94,6.8987]
[1746414287755,31.1575,144.98,144.95,6.8985]
[1746414289255,28.2583,145.01,144.92,5.23599593]
[1746414289457,28.2583,145.01,144.92,7.91769593]
[1746414289654,6.8969,144.99,144.95,6.8983]
[1746414296358,26.2194,145.01,144.94,24.26]
[1746414296856,33.1155,145.01,144.97,6.8973]
[1746414297048,26.2194,145.01,144.97,6.8973]
[1746414297458,6.8966,145.0,144.97,6.8973]
[1746414299263,31.1558,145.01,144.97,6.8973]
[1746414299461,24.26,145.01,144.98,6.8969]
[1746414299658,2.0737,145.04,144.99,24.26]
[1746414300064,28.4673,145.08,145.01,6.8956]
[1746414300365,30.4344,145.08,145.01,6.8956]
[1746414301172,6.8943,145.04,144.99,31.1563]
[1746414301467,30.4344,145.08,144.99,24.26]
[1746414301970,6.894,145.05,145.0,6.896]
[1746414302166,30.4344,145.08,145.0,6.896]
[1746414302774,30.4344,145.08,144.99,24.26]
[1746414302967,5.23599593,145.07,144.96,24.26]
[1746414303464,6.8967,144.99,144.96,31.158]
[1746414305068,6.8974,144.98,144.96,24.26]
[1746414305372,24.26,145.04,144.96,24.26]
[1746414305373,4.1162,145.03,144.96,24.26]
[1746414305971,6.8974,144.98,144.96,24.26]
[1746414306971,6.8967,144.99,144.96,24.26]
[1746414307177,4.1162,145.03,144.96,24.26]
[1746414307666,6.8957,145.01,144.96,31.1576]
[1746414308173,6.8957,145.01,144.97,6.8975]
[1746414308378,6.8962,145.0,144.97,6.8975]
[1746414310980,4.1162,145.03,144.96,24.26]
[1746414311174,2.0286,145.03,144.96,24.26]
[1746414311778,6.8955,145.02,144.98,6.8971]
[1746414312679,6.8955,145.02,144.99,6.8965]
[1746414313982,6.8955,145.02,144.98,6.8969]
[1746414314179,2.0286,145.03,144.97,10.37]
[1746414314377,4.0168,145.02,144.97,10.37]
[1746414314784,6.8965,145.0,144.97,10.37]
[1746414315187,4.0168,145.02,144.97,10.37]
[1746414315889,6.8965,145.0,144.97,10.37]
[1746414317283,6.8967,144.99,144.97,10.37]
[1746414317593,6.8967,144.99,144.95,6.8984]
[1746414319193,6.8967,144.99,144.93,26.29]
[1746414319194,6.8972,144.98,144.94,6.8989]
[1746414319794,6.8968,144.99,144.95,6.8984]
[1746414320096,4.0168,145.02,144.95,6.8984]
[1746414320995,4.0168,145.02,144.95,19.1984]
[1746414321295,6.8969,144.99,144.95,19.1984]
[1746414321496,2.0286,145.03,144.95,17.53599593]
[1746414321690,8.9235,145.03,144.98,5.23599593]
[1746414321891,8.9235,145.03,144.99,31.1363]
[1746414322590,2.0286,145.03,144.99,31.1363]
[1746414322893,6.8952,145.02,144.99,24.24]
[1746414326895,2.0286,145.03,144.99,24.24]
[1746414327098,2.0286,145.03,144.97,11.72]
[1746414327598,6.8967,144.99,144.97,11.72]
[1746414328198,6.8963,145.0,144.97,11.72]
[1746414328697,6.8959,145.01,144.97,11.72]
[1746414328998,6.8959,145.01,144.97,18.6174]
[1746414331397,26.2686,145.03,144.97,11.72]
[1746414331798,2.0286,145.03,144.97,11.72]
[1746414332295,6.8948,145.03,144.99,6.8963]
[1746414332701,28.3081,145.06,144.99,6.8963]
[1746414333002,6.8955,145.02,144.98,6.897]
[1746414333199,28.3081,145.06,144.97,11.72]
[1746414333399,33.54409593,145.06,144.97,11.72]
[1746414333600,6.8968,144.99,144.97,11.72]
[1746414333798,33.54409593,145.06,144.97,11.72]
[1746414335303,6.8962,145.0,144.97,11.72]
[1746414335903,6.8962,145.0,144.97,18.6175]
[1746414337804,6.8962,145.0,144.97,11.72]
[1746414338606,6.8968,144.99,144.97,11.72]
[1746414339602,6.8971,144.98,144.97,11.72]
[1746414339807,6.8971,144.98,144.96,24.24]
[1746414340001,33.54409593,145.06,144.96,24.24]
[1746414340196,6.8971,144.99,144.96,24.24]
[1746414340396,24.24,145.02,144.96,24.24]
[1746414340902,6.8972,144.98,144.96,24.24]
[1746414345205,2.1378,145.01,144.96,24.24]
[1746414345411,4.231,145.01,144.96,24.24]
[1746414345714,6.8973,144.98,144.96,24.24]
[1746414352131,2.1378,145.01,144.96,24.24]
[1746414352322,24.24,145.02,144.96,24.24]
[1746414352828,6.8964,145.0,144.96,31.1378]
[1746414353528,6.8968,144.99,144.96,31.1378]
[1746414354329,24.24,145.02,144.96,24.24]
[1746414355530,6.8976,144.97,144.96,24.24]
[1746414356131,6.8973,144.98,144.96,24.24]
[1746414360235,24.24,145.02,144.96,24.24]
[1746414360436,24.24,145.02,144.95,13.97]
[1746414360638,1.9585,145.01,144.94,9.74]
[1746414360933,5.23599593,144.97,144.88,570.44]
[1746414361235,5.23599593,145.04,144.85,24.24]
[1746414361236,5.23599593,144.94,144.85,24.24]
[1746414361427,5.23599593,144.94,144.82,33.5635384]
[1746414361428,26.3322,144.93,144.82,56.4639384]
[1746414361825,6.9022,144.88,144.82,63.3686384]
[1746414362037,24.24,144.89,144.82,56.4639384]
[1746414362538,24.24,144.89,144.84,6.9036]
[1746414362934,24.24,144.89,144.82,24.24]
[1746414363137,24.24,144.89,144.85,12.86]
[1746414363831,26.3322,144.93,144.85,12.86]
[1746414364237,26.3322,144.93,144.89,6.9011]
[1746414365732,26.3322,144.93,144.9,6.9008]
[1746414366938,33.2318,144.93,144.89,6.9012]
[1746414367131,26.3322,144.93,144.89,6.9012]
[1746414367337,26.3322,144.93,144.86,24.24]
[1746414370541,26.3322,144.93,144.9,6.9008]
[1746414371942,33.2318,144.93,144.89,6.9013]
[1746414372441,26.3322,144.93,144.87,13.62]
[1746414373243,26.3322,144.93,144.89,6.9009]
[1746414373735,26.3322,144.93,144.87,13.62]
[1746414375243,33.2317,144.93,144.87,13.62]
[1746414375537,26.3322,144.93,144.87,13.62]
[1746414375937,26.3322,144.93,144.9,6.9006]
[1746414377042,26.3322,144.93,144.91,6.9004]
[1746414377944,26.3322,144.93,144.9,6.9007]
[1746414382648,26.3322,144.93,144.89,6.9013]
[1746414383146,6.9009,144.9,144.89,8.88]
[1746414383448,26.3322,144.93,144.83,24.24]
[1746414383945,6.9009,144.9,144.83,24.24]
[1746414384849,6.9009,144.9,144.85,6.9033]
[1746414385247,6.9009,144.9,144.83,24.24]
[1746414386352,6.9009,144.9,144.86,6.9025]
[1746414389351,31.58605776,144.93,144.85,6.9031]
[1746414390953,6.9015,144.89,144.85,6.9031]
[1746414391850,6.9011,144.9,144.86,6.9028]
[1746414392051,31.58605776,144.93,144.84,11.69]
[1746414392853,6.9015,144.89,144.85,6.903]
[1746414393453,6.9015,144.89,144.86,6.9028]
[1746414394357,6.9015,144.89,144.85,6.9031]
[1746414395155,6.902,144.88,144.84,18.5936]
[1746414396157,6.9016,144.89,144.85,6.9032]
[1746414396355,6.9016,144.89,144.84,11.69]
[1746414396356,24.24,144.88,144.84,11.69]
[1746414396556,24.24,144.87,144.84,11.69]
[1746414396753,24.24,144.87,144.85,6.9033]
[1746414396957,24.24,144.87,144.84,11.69]
[1746414397255,6.9019,144.88,144.84,18.5935]
[1746414398657,6.9018,144.89,144.85,6.9033]
[1746414398957,6.9018,144.89,144.84,11.69]
[1746414400857,6.9018,144.89,144.86,6.9028]
[1746414401062,6.9018,144.89,144.84,11.69]
[1746414401457,6.9018,144.89,144.85,6.903]
[1746414401859,6.9023,144.88,144.84,11.69]
[1746414402061,6.9023,144.88,144.84,18.5933]
[1746414403462,6.9023,144.88,144.85,6.9032]
[1746414404062,6.9016,144.89,144.85,6.9032]
[1746414405262,6.9019,144.88,144.85,6.9032]
[1746414405963,6.9019,144.88,144.84,6.9036]
[1746414406261,6.9019,144.88,144.83,9.45]
[1746414406662,6.9019,144.88,144.84,6.9036]
[1746414407058,6.9024,144.87,144.83,9.45]
[1746414407262,29.49385776,144.9,144.83,9.45]
[1746414407462,4.2699,144.89,144.83,9.45]
[1746414407664,6.9033,144.85,144.83,9.45]
[1746414408066,2.1102,144.88,144.82,10.72]
[1746414408265,6.9032,144.86,144.82,17.6246]
[1746414408466,2.1102,144.88,144.82,10.72]
[1746414408763,6.9033,144.86,144.82,17.6247]
[1746414411460,6.9043,144.83,144.82,10.72]
[1746414411667,5.25385776,144.87,144.82,10.72]
[1746414411966,24.24,144.86,144.78,9.19]
[1746414412162,6.9038,144.84,144.8,6.9053]
[1746414412565,24.24,144.86,144.79,24.24]
[1746414414466,6.9039,144.84,144.8,6.9054]
[1746414414670,24.24,144.86,144.79,24.24]
[1746414414970,6.9035,144.85,144.81,6.9049]
[1746414415173,24.24,144.86,144.81,6.9049]
[1746414415672,6.9036,144.85,144.81,6.9049]
[1746414415873,2.1102,144.88,144.82,6.9044]
[1746414416572,2.1102,144.88,144.83,6.9042]
[1746414416872,6.9031,144.86,144.83,6.9042]
[1746414417170,6.9031,144.86,144.82,6.9046]
[1746414419773,6.9033,144.85,144.82,6.9046]
[1746414420472,6.9029,144.86,144.83,6.9042]
[1746414421373,6.9024,144.87,144.84,6.9035]
[1746414421575,24.24,144.89,144.83,24.24]
[1746414422177,6.9026,144.87,144.84,6.9036]
[1746414422775,6.9026,144.87,144.83,31.144]
[1746414423575,6.9026,144.87,144.84,6.9037]
[1746414423772,6.9026,144.87,144.83,24.24]
[1746414424076,6.9029,144.86,144.83,31.1441]
[1746414424577,6.9025,144.87,144.84,6.9038]
[1746414424976,24.24,144.89,144.83,24.24]
[1746414426276,6.9031,144.86,144.83,24.24]
[1746414426476,24.24,144.89,144.83,24.24]
[1746414426678,6.9037,144.85,144.83,24.24]
[1746414427079,6.9037,144.85,144.81,19.505]
[1746414429282,6.9037,144.85,144.82,6.9047]
[1746414431681,6.9037,144.85,144.81,19.505]
[1746414432987,6.9037,144.85,144.82,6.9046]
[1746414435987,6.9038,144.84,144.82,6.9046]
[1746414436187,6.9038,144.84,144.81,6.905]
[1746414436691,6.9038,144.84,144.81,16.235]
[1746414437384,6.9038,144.84,144.82,6.9047]
[1746414437683,6.9034,144.85,144.82,6.9047]
[1746414438787,24.24,144.89,144.82,6.9047]
[1746414439193,24.24,144.89,144.81,16.235]
[1746414439686,24.24,144.89,144.82,6.9047]
[1746414440085,24.24,144.89,144.81,9.33]
[1746414440379,24.24,144.89,144.81,16.2349]
[1746414440588,6.9036,144.85,144.81,16.2349]
[1746414441692,6.9036,144.85,144.82,6.9047]
[1746414441889,6.9036,144.85,144.81,9.33]
[1746414442491,6.9036,144.85,144.81,16.235]
[1746414442687,6.9036,144.85,144.81,9.33]
[1746414443191,6.903,144.86,144.82,6.9045]
[1746414444090,6.9034,144.85,144.82,6.9045]
[1746414445990,3.36358284,144.88,144.81,12.69358284]
[1746414446386,6.9041,144.84,144.81,12.69358284]
[1746414446791,3.36358284,144.88,144.81,12.69358284]
[1746414446991,3.36358284,144.86,144.81,12.69358284]
[1746414447293,3.36358284,144.86,144.81,19.59868284]
[1746414447591,3.36358284,144.86,144.81,12.69358284]
[1746414448489,3.36358284,144.86,144.81,9.33]
[1746414449688,6.904,144.84,144.81,9.33]
[1746414449893,3.36358284,144.86,144.81,9.33]
[1746414450295,6.9036,144.85,144.81,16.2352]
[1746414450685,6.9036,144.85,144.81,19.59878284]
[1746414451696,6.9036,144.85,144.81,16.2352]
[1746414453701,24.24,144.89,144.81,9.33]
[1746414453897,5.25614572,144.87,144.81,9.33]
[1746414454094,5.25614572,144.84,144.81,9.33]
[1746414454298,5.25614572,144.84,144.74,24.24]
[1746414454299,24.24,144.83,144.74,31.1485]
[1746414454799,24.24,144.83,144.74,24.24]
[1746414454995,5.25614572,144.81,144.74,24.24]
[1746414455194,4.2169,144.8,144.74,24.24]
[1746414455395,6.9072,144.77,144.74,24.24]
[1746414459101,6.9079,144.76,144.74,24.24]
[1746414460397,6.9081,144.75,144.74,24.24]
[1746414460597,6.9081,144.75,144.71,33.2756]
[1746414460799,6.9091,144.73,144.71,24.24]
[1746414461100,5.25614572,144.78,144.69,13.87]
[1746414461302,6.9094,144.73,144.69,13.87]
[1746414461802,24.24,144.75,144.69,13.87]
[1746414464298,6.9098,144.72,144.69,13.87]
[1746414464601,6.9098,144.72,144.68,31.1511]
[1746414467605,6.9091,144.73,144.69,6.9105]
[1746414467901,6.9091,144.73,144.68,29.49614572]
[1746414468102,6.9091,144.73,144.68,31.63144572]
[1746414468496,6.2112,144.8,144.68,31.63144572]
[1746414468701,24.24,144.78,144.68,35.65844572]
[1746414468896,24.24,144.78,144.72,6.9092]
[1746414469397,6.9081,144.75,144.72,6.9092]
[1746414469602,24.24,144.78,144.68,35.65844572]
[1746414469808,6.9093,144.73,144.68,30.4023]
[1746414470304,6.9087,144.74,144.7,6.9103]
[1746414470500,6.9087,144.74,144.68,30.4023]
[1746414470699,24.24,144.78,144.68,30.4023]
[1746414470700,24.24,144.78,144.7,5.25614572]
[1746414471302,24.24,144.78,144.68,30.4023]
[1746414471604,24.24,144.78,144.69,6.9109]
[1746414472304,6.9094,144.73,144.69,6.9109]
[1746414473205,6.9095,144.72,144.69,6.9109]
[1746414473807,6.9104,144.71,144.68,30.4023]
[1746414475207,6.9095,144.73,144.68,30.4023]
[1746414475506,24.24,144.78,144.68,30.4023]
[1746414475709,24.24,144.78,144.69,6.9108]
[1746414476609,24.24,144.78,144.68,30.4023]
[1746414477609,6.9088,144.74,144.7,6.9103]
[1746414479410,6.9092,144.73,144.7,6.9103]
[1746414479707,24.24,144.78,144.69,6.9108]
[1746414480304,5.25614572,144.76,144.68,24.24]
[1746414480508,5.9449,144.75,144.69,9.16]
[1746414480707,24.24,144.74,144.69,9.16]
[1746414480904,6.9103,144.71,144.69,9.16]
[1746414484216,6.9103,144.71,144.68,24.24]
[1746414484810,6.9105,144.7,144.68,24.24]
[1746414486110,6.9109,144.69,144.67,9.2]
[1746414486518,6.9109,144.69,144.65,31.1526]
[1746414487416,6.9115,144.68,144.65,31.1526]
[1746414489111,6.9115,144.68,144.65,24.24]
[1746414489316,5.25614572,144.73,144.65,24.24]
[1746414489816,6.9116,144.68,144.65,24.24]
[1746414492415,5.25614572,144.73,144.65,24.24]
[1746414492619,24.24,144.74,144.65,29.49614572]
[1746414493321,24.24,144.74,144.67,6.9117]
[1746414493820,6.9102,144.71,144.67,6.9117]
[1746414495223,6.9105,144.7,144.67,6.9117]
[1746414497524,24.24,144.74,144.65,24.24]
[1746414497824,5.25614572,144.73,144.65,24.24]
[1746414498221,6.912,144.67,144.65,24.24]
[1746414498525,6.912,144.67,144.63,25.7369]
[1746414498825,6.912,144.67,144.63,32.6504]
[1746414499328,6.912,144.67,144.63,25.7369]
[1746414499527,6.9114,144.68,144.64,6.9132]
[1746414500127,6.9114,144.68,144.63,32.6504]
[1746414500426,6.9114,144.68,144.63,25.7369]
[1746414500727,6.9114,144.68,144.64,6.913]
[1746414501326,6.9114,144.68,144.65,6.9128]
[1746414502324,29.49614572,144.7,144.63,19.67]
[1746414502522,5.9365,144.69,144.63,19.67]
[1746414502829,6.913,144.65,144.63,19.67]
[1746414503129,6.913,144.65,144.61,31.1546]
[1746414504331,5.9365,144.69,144.61,31.1546]
[1746414504332,5.9365,144.69,144.61,24.24]
[1746414504932,5.9365,144.69,144.61,31.1545]
[1746414505931,6.913,144.65,144.61,31.1545]
[1746414506432,6.9125,144.66,144.62,6.9139]
[1746414506628,5.9365,144.69,144.61,24.24]
[1746414506932,5.9365,144.69,144.62,9.17]
[1746414507935,6.9122,144.67,144.63,6.9136]
[1746414508230,6.9122,144.67,144.63,19.4836]
[1746414508932,6.9124,144.66,144.63,19.4836]
[1746414509536,6.9124,144.66,144.63,12.57]
[1746414510234,6.9128,144.65,144.63,12.57]
[1746414510433,5.9365,144.69,144.63,12.57]
[1746414510735,6.9133,144.64,144.63,12.57]
[1746414511034,6.9133,144.64,144.62,9.17]
[1746414511537,6.913,144.65,144.62,9.17]
[1746414517442,6.9134,144.64,144.62,9.17]
[1746414518343,5.9365,144.69,144.62,9.17]
[1746414519444,6.9132,144.65,144.62,9.17]
[1746414520445,6.9134,144.64,144.62,9.17]
[1746414520741,5.9365,144.69,144.62,9.17]
[1746414521045,6.9132,144.65,144.62,9.17]
[1746414521439,6.9132,144.65,144.62,16.0843]
[1746414521845,6.9132,144.65,144.62,9.17]
[1746414522450,6.9126,144.66,144.62,9.17]
[1746414522751,6.9126,144.66,144.62,16.084]
[1746414524755,6.9129,144.65,144.62,16.084]
[1746414525954,6.9129,144.65,144.62,9.17]
[1746414526151,6.9134,144.64,144.62,9.17]
[1746414527055,6.9134,144.64,144.61,40.3845]
[1746414527349,6.9134,144.64,144.61,33.47]
[1746414527853,6.9128,144.66,144.61,33.47]
[1746414528758,6.9122,144.67,144.61,33.47]
[1746414528962,24.24,144.7,144.61,38.72614572]
[1746414529161,24.24,144.7,144.62,2.1137]
[1746414529458,5.25614572,144.68,144.61,9.23]
[1746414529859,6.9136,144.64,144.61,9.23]
[1746414530358,6.9136,144.64,144.61,18.4]
[1746414530561,6.9139,144.63,144.61,18.4]
[1746414532261,6.9143,144.62,144.61,18.4]
[1746414534664,6.914,144.63,144.61,18.4]
[1746414535859,6.9143,144.62,144.61,18.4]
[1746414538165,24.24,144.66,144.61,18.4]
[1746414538866,6.9143,144.62,144.61,18.4]
[1746414540480,6.9164,144.58,144.53,576.85614572]
[1746414540775,6.9164,144.58,144.53,552.61614572]
[1746414541078,6.9164,144.58,144.53,578.5182]
[1746414541280,6.9164,144.58,144.53,6.9182]
[1746414541479,6.9164,144.58,144.52,24.24]
[1746414541679,6.9164,144.58,144.54,6.9178]
[1746414542381,6.9167,144.57,144.54,6.9178]
[1746414543083,6.9163,144.58,144.54,6.9178]
[1746414543282,29.49614572,144.62,144.54,6.9178]
[1746414544382,29.49614572,144.62,144.54,15.6178]
[1746414544583,6.9168,144.57,144.54,8.7]
[1746414547883,6.9168,144.57,144.53,6.9184]
[1746414548087,6.9168,144.57,144.54,6.9181]
[1746414554888,6.9164,144.58,144.55,6.9175]
[1746414555081,29.49614572,144.62,144.52,24.24]
[1746414555477,6.9176,144.56,144.52,31.1588]
[1746414555687,6.9176,144.56,144.52,24.24]
[1746414555989,6.9176,144.56,144.53,6.9185]
[1746414556287,6.9177,144.55,144.52,24.24]
[1746414556588,5.9999,144.61,144.52,24.24]
[1746414557189,5.9999,144.61,144.53,6.9186]
[1746414557590,6.917,144.57,144.53,6.9186]
[1746414559488,6.9173,144.56,144.52,6.9189]
[1746414559694,24.24,144.58,144.52,6.9189]
[1746414560096,6.9174,144.56,144.52,6.9189]
[1746414560595,6.9169,144.57,144.53,6.9185]
[1746414561599,6.9177,144.55,144.51,32.95]
[1746414561786,24.24,144.58,144.51,32.95]
[1746414562191,6.9178,144.55,144.52,6.9191]
[1746414562388,24.24,144.58,144.52,6.9191]
[1746414562693,6.9176,144.56,144.52,6.9191]
[1746414563400,6.9177,144.55,144.52,6.9191]
[1746414564802,6.9169,144.57,144.54,6.9178]
[1746414565299,6.9172,144.56,144.54,6.9178]
[1746414565499,24.24,144.58,144.54,6.9178]
[1746414566295,24.24,144.58,144.5,24.24]
[1746414566296,24.24,144.58,144.52,8.72]
[1746414567001,6.9169,144.57,144.54,6.9181]
[1746414570306,24.24,144.58,144.52,15.6389]
[1746414570596,24.24,144.58,144.52,8.72]
[1746414571403,6.918,144.55,144.52,8.72]
[1746414572705,6.918,144.55,144.52,15.6388]
[1746414573102,6.918,144.55,144.52,8.72]
[1746414573304,30.2399,144.61,144.52,8.72]
[1746414573499,26.2762,144.61,144.52,8.72]
[1746414573702,6.9165,144.58,144.56,6.9171]
[1746414574710,6.9165,144.58,144.55,31.1574]
[1746414575307,5.25614572,144.59,144.52,32.96]
[1746414575701,6.9184,144.54,144.52,32.96]
[1746414576205,6.9184,144.54,144.52,24.24]
[1746414576706,5.25614572,144.59,144.52,24.24]
[1746414578409,4.2841,144.6,144.52,24.24]
[1746414578797,2.1494,144.6,144.52,24.24]
[1746414579101,6.9155,144.6,144.56,6.9168]
[1746414579308,26.2762,144.61,144.56,6.9168]
[1746414580206,6.9158,144.59,144.56,6.9168]
[1746414580910,24.24,144.61,144.58,6.9162]
[1746414581206,24.24,144.61,144.54,2.0829]
[1746414581405,572.0,144.64,144.54,2.0829]
[1746414582009,6.9148,144.61,144.57,6.9164]
[1746414582209,572.0,144.64,144.57,6.9164]
[1746414583103,572.0,144.64,144.58,6.9161]
[1746414583309,572.0,144.64,144.56,24.24]
[1746414583509,6.915,144.61,144.56,24.24]
[1746414583705,6.915,144.61,144.57,6.9162]
[1746414587407,6.915,144.61,144.58,6.916]
[1746414588308,6.915,144.61,144.57,6.9165]
[1746414589208,6.915,144.61,144.58,6.9162]
[1746414593513,6.915,144.61,144.57,6.9165]
[1746414593914,6.915,144.61,144.56,24.24]
[1746414594717,6.915,144.61,144.58,6.9161]
[1746414597116,24.24,144.64,144.59,6.9156]
[1746414597718,6.9147,144.62,144.59,6.9156]
[1746414598118,6.9147,144.62,144.56,24.24]
[1746414598119,24.24,144.64,144.56,29.49614572]
[1746414598313,24.24,144.67,144.56,29.49614572]
[1746414598714,24.24,144.67,144.61,6.9147]
[1746414599021,6.9132,144.65,144.61,6.9147]
[1746414599722,6.9134,144.64,144.61,6.9147]
[1746414601022,24.24,144.67,144.56,29.49614572]
[1746414601325,5.25614572,144.66,144.56,24.24]
[1746414601526,6.9151,144.61,144.57,6.9165]
[1746414601926,5.9958,144.65,144.57,6.9165]
[1746414602321,5.9958,144.65,144.56,31.157]
[1746414602525,5.25614572,144.63,144.56,24.24]
[1746414602728,24.24,144.62,144.56,24.24]
[1746414602930,24.24,144.62,144.56,31.1571]
[1746414603829,6.9162,144.58,144.56,24.24]
[1746414604330,6.9175,144.56,144.53,32.96]
[1746414605735,6.9175,144.56,144.53,39.8785]
[1746414606029,24.24,144.62,144.53,32.96]
[1746414606826,6.9154,144.6,144.53,32.96]
[1746414607331,6.9157,144.59,144.56,6.9169]
[1746414608030,6.9162,144.58,144.56,6.9169]
[1746414609132,6.9162,144.58,144.55,6.9175]
[1746414611036,24.24,144.62,144.54,8.75]
[1746414612236,6.9169,144.57,144.54,8.75]
[1746414612435,6.9169,144.57,144.54,15.668]
[1746414613738,6.9169,144.57,144.54,8.75]
[1746414614531,24.24,144.62,144.54,15.668]
[1746414614736,6.9164,144.58,144.54,15.668]
[1746414615141,6.9167,144.57,144.54,15.668]
[1746414619044,6.9167,144.57,144.55,6.9176]
[1746414619646,6.9164,144.58,144.55,6.9176]
[1746414622446,6.9164,144.58,144.56,6.9171]
[1746414622635,6.9159,144.59,144.56,6.9171]
[1746414623249,6.9154,144.6,144.57,6.9166]
[1746414624545,6.9154,144.6,144.58,6.9162]
[1746414624750,6.9149,144.61,144.54,14.00614572]
[1746414624954,6.9149,144.61,144.55,6.2239]